Workbook

Sheet SEZIONE
C1: cm
AK2: 0 | AL2: =SEZIONE!$J$5 -> 30
B3: Coordinate dei nodi | F3: Assi baricentrici | AK3: =-#REF!*50 ->  | AL3: =SEZIONE!$J$5 -> 30
C4: x | D4: y | F4: A = | G4: =SUM((Y-OFFSET(Y,1,0))*(X+OFFSET(X,1,0)))/2 -> 198 | H4: =$C$1 & "²" -> cm² | I4: L = | J4: =MAX(X)-MIN(X) -> 25 | K4: =$C$1 -> cm | AK4: =-#REF!*50 ->  | AL4: =SEZIONE!$J$5+#REF!*100 -> 
B5: 1 | C5: 0 | D5: 0 | F5: P = | G5: =SUM(SQRT((OFFSET(X,1,0)-X)^2+(OFFSET(Y,1,0)-Y)^2)) -> 156 | H5: =C1 -> cm | I5: H = | J5: =MAX(Y)-MIN(Y) -> 30 | K5: =$C$1 -> cm | AK5: =#REF!*50 ->  | AL5: =SEZIONE!$J$5+#REF!*100 -> 
B6: =1+B5 -> 2 | C6: -12.5 | D6: 0 | F6: xc = | G6: =SUM((Y-OFFSET(Y,1,0))/8*((X+OFFSET(X,1,0))^2+(OFFSET(X,1,0)-X)^2/3))/$G$4 -> 0 | H6: =C1 -> cm | I6: Wxsup = | J6: =G8/ABS(MAX(Y)-$G$7) -> 1983.6 | K6: =$C$1&"³" -> cm³ | AK6: =#REF!*50 ->  | AL6: =SEZIONE!$J$5 -> 30
B7: 3 | C7: -12.5 | D7: 3 | F7: yc = | G7: =SUM((OFFSET(X,1,0)-X)/8*((Y+OFFSET(Y,1,0))^2+(OFFSET(Y,1,0)-Y)^2/3))/$G$4 -> 15 | H7: =C1 -> cm | I7: Wxinf = | J7: =G8/ABS(MIN(Y)-$G$7) -> 1983.6 | K7: =$C$1&"³" -> cm³ | AK7: 0 | AL7: =SEZIONE!$J$5 -> 30
B8: 4 | C8: -1 | D8: 3 | F8: Ix = | G8: =SUM((OFFSET(X,1,0)-X)*(Y+OFFSET(Y,1,0))/12*(OFFSET(Y,1,0)^2+Y^2))-G4*G7^2 -> 29754 | H8: =$C$1&"^4" -> cm^4 | I8: Wydx = | J8: =G9/ABS(MIN(X)-G6) -> 626.28 | K8: =$C$1&"³" -> cm³ | AG8: DX = | AH8: =MAX(X)-MIN(X) -> 25 | AR8: DX = | AS8: =MAX(X)-MIN(X) -> 25
B9: 5 | C9: -1 | D9: 27 | F9: Iy = | G9: =-SUM((OFFSET(Y,1,0)-Y)*(X+OFFSET(X,1,0))/12*(OFFSET(X,1,0)^2+X^2))-G4*G6^2 -> 7828.5 | H9: =$C$1&"^4" -> cm^4 | I9: Wysx = | J9: =G9/ABS(MAX(X)-G6) -> 626.28 | K9: =$C$1&"³" -> cm³ | AG9: DY= | AH9: =MAX(Y)-MIN(Y) -> 30 | AO9: Imax = | AP9: =+(G8+G9)/2-SQRT((G8-G9)^2/4+G10^2) -> 7828.5 | AQ9: =$C$1&"^4" -> cm^4 | AR9: DY= | AS9: =MAX(Y)-MIN(Y) -> 30
B10: 6 | C10: -12.5 | D10: 27 | F10: Ixy = | G10: =SUM(((OFFSET(Y,1,0)-Y)^2*(OFFSET(X,1,0)+X)*(OFFSET(X,1,0)^2+X^2)/8+(OFFSET(Y,1,0)-Y)*(OFFSET(X,1,0)*Y-X*OFFSET(Y,1,0))*(OFFSET(X,1,0)^2+OFFSET(X,1,0)*X+X^2)/3+(OFFSET(X,1,0)*Y-X*OFFSET(Y,1,0))^2*(OFFSET(X,1,0)+X)/4)*IF(OFFSET(X,1,0)=X,0,1/(OFFSET(X,1,0)-X)))-G4*G6*G7 -> 0 | H10: =$C$1&"^4" -> cm^4 | AG10: Plot of diagonal | AJ10: For Chart labels | AO10: Imin = | AP10: =+(G8+G9)/2+SQRT((G8-G9)^2/4+G10^2) -> 29754 | AQ10: =$C$1&"^4" -> cm^4 | AR10: controllo scala | AU10: per le etichette
B11: 7 | C11: -12.5 | D11: 30 | F11: Direzioni principali | AG11: to control XY scale | AO11: Plottaggio Assi principali
B12: 8 | C12: 12.5 | D12: 30 | F12: qp = | G12: =IF(G10=0,0,IF(G8-G9=0,45,DEGREES(1/2*ATAN(-2*G10/(G8-G9))))) -> 0 | H12: deg | I12: Wxpsup = | J12: =ABS(G13/MAX(SQRT((X-$G$6)^2+(Y-$G$7)^2)*SIN(ATAN2(X-$G$6,Y-$G$7)-RADIANS($G$12)))) -> 1983.6 | K12: =$C$1&"³" -> cm³ | AG12: x | AH12: y | AJ12: x | AK12: y | AO12: x | AP12: y | AR12: x | AS12: y | AU12: x | AV12: y
B13: 9 | C13: 12.5 | D13: 27 | F13: Ixp = | G13: =G8*COS(RADIANS(G12))^2+G9*SIN(RADIANS(G12))^2-G10*SIN(2*RADIANS(G12)) -> 29754 | H13: =$C$1&"^4" -> cm^4 | I13: Wxpinf = | J13: =ABS(G13/MIN(SQRT((X-$G$6)^2+(Y-$G$7)^2)*SIN(ATAN2(X-$G$6,Y-$G$7)-RADIANS($G$12)))) -> 1983.6 | K13: =$C$1&"³" -> cm³ | AG13: =IF(AH8>=AH9,MIN(X),(MAX(X)+MIN(X)-AH9)/2) -> -15 | AH13: =IF(AH8>=AH9,(MAX(Y)+MIN(Y)-AH8)/2,MIN(Y)) -> 0 | AJ13: =AG14 -> 15 | AK13: 0 | AO13: =MIN(X) -> -12.5 | AP13: =(AO13-$G$6)*TAN(RADIANS($G$12))+$G$7 -> 15 | AR13: =IF(AS8>=AS9,MIN(X),(MAX(X)+MIN(X)-AS9)/2) -> -15 | AS13: =IF(AS8>=AS9,(MAX(Y)+MIN(Y)-AS8)/2,MIN(Y)) -> 0 | AU13: =AR14 -> 15 | AV13: 0
B14: 10 | C14: 1 | D14: 27 | E14: 1 | F14: Iyp = | G14: =G8+G9-G13 -> 7828.5 | H14: =$C$1&"^4" -> cm^4 | I14: Wypdx = | J14: =ABS($G$14/MIN(SQRT((X-$G$6)^2+(Y-$G$7)^2)*COS(ATAN2(X-$G$6,Y-$G$7)-RADIANS($G$12)))) -> 626.28 | K14: =$C$1&"³" -> cm³ | AG14: =IF(AH8>=AH9,MAX(X),(MAX(X)+MIN(X)+AH9)/2) -> 15 | AH14: =IF(AH8>=AH9,(MAX(Y)+MIN(Y)+AH8)/2,MAX(Y)) -> 30 | AJ14: 0 | AK14: =AH14 -> 30 | AO14: =MAX(X) -> 12.5 | AP14: =(AO14-$G$6)*TAN(RADIANS($G$12))+$G$7 -> 15 | AR14: =IF(AS8>=AS9,MAX(X),(MAX(X)+MIN(X)+AS9)/2) -> 15 | AS14: =IF(AS8>=AS9,(MAX(Y)+MIN(Y)+AS8)/2,MAX(Y)) -> 30 | AU14: 0 | AV14: =AS14 -> 30
B15: 11 | C15: 1 | D15: 3 | F15: Ip = | G15: =+G13+G14 -> 37582.5 | H15: =$C$1&"^4" -> cm^4 | I15: Wypsx = | J15: =ABS($G$14/MAX(SQRT((X-$G$6)^2+(Y-$G$7)^2)*COS(ATAN2(X-$G$6,Y-$G$7)-RADIANS($G$12)))) -> 626.28 | K15: =$C$1&"³" -> cm³
B16: 12 | C16: 12.5 | D16: 3 | AO16: =(AP16-$G$7)*TAN(RADIANS(-$G$12))+$G$6 -> 0 | AP16: =MIN(Y) -> 0
B17: 13 | C17: 12.5 | D17: 0 | F17: Riferimento utente | AO17: =(AP17-$G$7)*TAN(RADIANS(-$G$12))+$G$6 -> 0 | AP17: =MAX(Y) -> 30
B18: 14 | C18: 0 | D18: 0 | F18: xo = | G18: 0 | H18: =$C$1 -> cm | I18: qo = | J18: 0 | K18: deg
B19: 15 | F19: yo = | G19: 0 | H19: =$C$1 -> cm
B20: 16 | F20: xco = | G20: =(G6-G18)*COS(RADIANS(J18))+(G7-G19)*SIN(RADIANS(J18)) -> 0 | H20: =$C$1 -> cm
B21: 17 | F21: yco = | G21: =-(G6-G18)*SIN(RADIANS(J18))+(G7-G19)*COS(RADIANS(J18)) -> 15 | H21: =$C$1 -> cm
B22: 18 | F22: Ixo = | G22: =G4*(G7-G19)^2+G8*COS(RADIANS(J18))^2+G9*SIN(RADIANS(J18))^2-G10*SIN(RADIANS(2*J18)) -> 74304 | H22: =$C$1&"^4" -> cm^4
B23: 19 | F23: Iyo = | G23: =G4*(G6-G18)^2+G8*SIN(RADIANS(J18))^2+G9*COS(RADIANS(J18))^2+G10*SIN(RADIANS(2*J18)) -> 7828.5 | H23: =$C$1&"^4" -> cm^4
B24: 20 | F24: Sxo = | G24: =G4*G21 -> 2970 | H24: =$C$1&"³" -> cm³
B25: 21 | F25: Syo = | G25: =G4*G20 -> 0 | H25: =$C$1&"³" -> cm³
B26: 22
B27: 23
B28: 24
B29: 25
B30: 26
B31: 27
B32: 28
B33: 29 | Q33: DIAGRAMMA TENSIONI NORMALI
B34: 30
B35: 31 | Q35: 201.71 | R35: 0
B36: 32 | Q36: -201.71 | R36: 30
B37: 33
B38: 34
B39: 35
B40: 36
B41: 37
B42: 38
B43: 39
B44: 40
B45: 41
B46: 42
B47: 43
B48: 44
B49: 45
B50: 46
B51: 47
B52: 48
B53: 49
B54: 50
B55: 51
B56: 52
B57: 53
B58: 54
B59: 55
B60: 56
B61: 57
B62: 58
B63: 59
B64: 60
B65: 61
B66: 62
B67: 63
B68: 64
B69: 65
B70: =1+B69 -> 66
B71: 67
B72: 68
B73: 69
B74: 70
B75: 71
B76: 72
B77: 73
B78: 74
B79: 75
B80: 76
B81: 77
B82: 78
B83: 79
B84: 80
B85: 81
B86: 82
B87: 83
B88: 84
B89: 85
B90: 86
B91: 87
B92: 88
B93: 89
B94: 90
B95: 91
B96: 92
B97: 93
B98: 94
B99: 95
B100: 96
B101: 97
B102: 98
B103: 99
B104: 100
B105: 101
B106: 102
B107: 103
B108: 104
B109: 105
B110: 106
B111: 107
B112: 108
B113: 109
B114: 110
B115: 111
B116: 112
B117: 113
B118: 114
B119: 115
B120: 116
B121: 117
B122: 118
B123: 119
B124: 120
B125: 121
B126: 122
B127: 123
B128: 124
B129: 125
B130: 126
B131: 127
B132: 128
B133: 129
B134: =1+B133 -> 130
B135: 131
B136: 132
B137: 133
B138: 134
B139: 135
B140: 136
B141: 137
B142: 138
B143: 139
B144: 140
B145: 141
B146: 142
B147: 143
B148: 144
B149: 145
B150: 146
B151: 147
B152: 148
B153: 149
B154: 150
B155: 151
B156: 152
B157: 153
B158: 154
B159: 155
B160: 156
B161: 157
B162: 158
B163: 159
B164: 160
B165: 161
B166: 162
B167: 163
B168: 164
B169: 165
B170: 166
B171: 167
B172: 168
B173: 169
B174: 170
B175: 171
B176: 172
B177: 173
B178: 174
B179: 175
B180: 176
B181: 177
B182: 178
B183: 179
B184: 180
B185: 181
B186: 182
B187: 183
B188: 184
B189: 185
B190: 186
B191: 187
B192: 188
B193: 189
B194: 190
B195: 191
B196: 192
B197: 193
B198: =1+B197 -> 194
B199: 195
B200: 196
... 156 more rows

Sheet Simbologia
E2: Simbologia e formule
E3: Input coordinate locations
E4: At the beginning of segment | F4: xi, yi
E5: At the end of segment | F5: xj, yj
E6: Cross-section total height | F6: H = ymax-ymin
E7: Cross-section total width | F7: W = xmax-xmin
E8: Total cross-section area | F8: A = S (yi-yj)(xi+xj)/2
E9: Perimeter | F9: P = S sqrt[(yi-yj)²+(xi-xj)²]
E10: Location of centroid with respect | F10: xc = S[(yi-yj)/8*((xi+xj)²+(xj-xi)²/3)]/A
E11: to the origin of reference axes | F11: yc = S[(xj-xi)/8*((yi+yj)²+(yj-yi)²/3)]/A
E12: Moments of inertia about centroidal axes | F12: Ix = S(xj-xi)(yi+yj)(yj²+yi²)/12 - Ayc²
E13: parallel to references axes | F13: Iy = S(yj-yi)(xi+xj)(xj²+xi²)/12 - Axc²
E14: Product of inertia | F14: Ixy = S [(yj-yi)²(xj+xi)(xj²+xi²)/8 +
F15: + (yj-yi)(xjyi-xiyj)(xj²+xjxi+xi²)/3 +
F16: + (xjyi-xiyj)²(xj+xi)/4] *
F17: * IF(xj=xi,0,1/(xj-xi)) - Axcyc
E18: Section modulus | F18: Sxtop = Ix/(ymax-yc)
E19: with respect to cenroidal axes | F19: Sxbot = Ix/(yc-ymin)
E20: parallel to reference axes | F20: Syright = Iy/(xmax-xc)
F21: Syleft = Iy/(xc-xmin)
E22: Angle between principal and reference axes | F22: qp = (1/2)tan-1(-2Ixy/(Ix-Iy))
E23: Principal moments of inertia | F23: Ixp = Ixcos²qp+Iysin²qp - Ixysin(2qp)
F24: Iyp = Ix+Iy-Iyp
E25: Polar moment of inertia | F25: Ip = Ix+Iy
E26: Location of custom axes orgin from ref. axes | F26: xo, yo
E27: Angle between custom and ref. axes | F27: qo
E28: First moment of inertia | F28: qxo = Ayco
E29: with respect to custom axes | F29: qyo = Axco
E30: Location of centroid with respect | F30: xco = (xc-xo)cosqo + (yc-yo)sinqo
E31: to the origin of custom axes | F31: yco = -(xc-xo)sinqo + (yc-yo)cosqo
